[Event "CCT Airthings Masters Play-In 2023"]
[Site "Online"]
[Date "2023.02.03"]
[Round "1"]
[White "mishanick"]
[Black "alexrustemov"]
[Result "1-0"]
[ECO "D17"]
[WhiteElo "2712"]
[BlackElo "2540"]
[Annotator "TA"]
[PlyCount "95"]
[EventDate "2023.02.03"]
[EventType "swiss"]
[EventCountry "NET"]
[SourceTitle "playchess.com"]
[Source "ChessBase"]
[SourceQuality "1"]
[TimeControl "600+2"]

{[%evp 15,95,26,26,18,28,22,29,17,31,20,20,0,20,21,20,22,6,10,101,50,99,104,101,91,128,118,109,126,133,140,141,130,224,216,250,253,245,238,279,266,258,260,321,193,327,262,262,264,593,588,652,652,614,441,497,479,559,575,575,568,518,537,1211,1255,1154,1123,1216,1156,1046,809,5289,4505,29972,29973,29977,29978,29977,29978,29978,29979,29994,29995]} 1. d4 {[%emt 0:00:03]} d5 {[%emt 0:00:08]} 2. Nf3 {[%emt 0:00:00]} c6 {[%emt 0:00:04]} 3. c4 {[%emt 0:00:02]} Nf6 {[%emt 0:00:04]} 4. Nc3 {[%emt 0:00:01]} dxc4 {[%emt 0:00:03]} 5. a4 {[%emt 0:00:01]} Bf5 {[%emt 0:00:03]} 6. Ne5 {[%emt 0:00:01]} Nbd7 {[%emt 0:00:01]} 7. Nxc4 {[%emt 0:00:01]} Nb6 {[%emt 0:00:00] outshines the older 7...Qc7.} 8. Ne5 {[%emt 0:00:01]} a5 {[%emt 0:00:01]} 9. e3 {[%emt 0:00:01] D17: Slav Defence: 5 a4 Bf5: Lines with 6 Nh4 and 6 Ne5.} g6 {[%emt 0:01:58]} 10. Bd3 {[%emt 0:00:03]} Bxd3 {[%emt 0:00:03]} 11. Nxd3 {[%emt 0:00:00] White has an edge.} Bg7 {[%emt 0:00:18]} 12. O-O {[%emt 0:00:01]} O-O {[%emt 0:00:02]} 13. Bd2 $5 {[%emt 0:00:19][%mdl 4] An interesting side line.} Nbd5 {[%emt 0:00:11]} 14. Qb3 {[%emt 0:00:26]} Qb6 {[%emt 0:00:10]} 15. Qxb6 {[%emt 0:00:04]} Nxb6 {[%emt 0:00:02] [#]} 16. Rfc1 $146 {[%emt 0:00:01]} ({Predecessor:} 16. b3 Rfd8 17. Ra2 e6 18. Rc1 Bf8 19. Kf1 Nbd5 20. Nd1 Nd7 21. Ke2 Bg7 22. f4 {1-0 Ivanisevic,I (2629)-Pavlovic,M (2535) Zuerich Jubilee op 2009 (8)}) 16... Nfd5 {[%emt 0:00:17]} (16... Rfd8 $11 {remains equal.}) 17. Ne4 {[%emt 0:00:03] Black is on the road to losing.} (17. Nxd5 $16 Nxd5 18. Rc5) 17... Nd7 {[%emt 0:00:07] [#]} (17... Ra7 $14 {is superior.}) 18. Nec5 $1 $16 {[%emt 0:00:13]} Nxc5 {[%emt 0:00:04]} 19. Rxc5 {[%emt 0:00:01]} Ra7 {[%emt 0:01:54]} 20. Rxa5 {[%emt 0:00:03] White is more active.} ({Of course not} 20. Bxa5 $6 Rfa8 21. Bd2 Rxa4 22. Rxa4 Rxa4 $11) 20... Rxa5 {[%emt 0:00:06]} 21. Bxa5 {[%emt 0:00:00]} Ra8 {[%emt 0:00:02]} 22. Bd2 {[%emt 0:00:01]} f5 {[%emt 0:00:05]} 23. a5 {[%emt 0:00:03]} b6 {[%emt 0:00:14] [#]} (23... Kf7 $16 24. g3 e6) 24. b4 $1 $18 {[%emt 0:00:05]} Kf7 {[%emt 0:00:08]} 25. Rc1 {[%emt 0:00:07]} Rc8 {[%emt 0:00:04]} 26. Kf1 {[%emt 0:00:37]} Ke6 {[%emt 0:00:03]} 27. Ke2 {[%emt 0:00:07]} Kd7 {[%emt 0:00:35]} 28. f3 {[%emt 0:00:07]} Rb8 {[%emt 0:00:23]} 29. Be1 {[%emt 0:00:26]} e6 {[%emt 0:00:42]} (29... f4 $142 30. e4 (30. Nxf4 Nxf4+ 31. exf4 bxa5 $16) (30. exf4 Bxd4 31. Rc4 Bf6 $16) 30... Nc7) 30. axb6 {[%emt 0:00:25]} Rxb6 {[%emt 0:00:03]} 31. Nc5+ {[%emt 0:00:08]} Kd6 $2 {[%emt 0:00:12]} (31... Kc8 32. Nxe6 Bh6) 32. Ra1 {[%emt 0:00:03] Black must now prevent Ra7.} e5 {[%emt 0:00:12]} 33. Ra7 {[%emt 0:00:14][%csl Gc5][%cal Ra7d7]} Nc7 {[%emt 0:00:03]} 34. Kd3 {[%emt 0:00:11]} g5 {[%emt 0:00:08]} 35. Kc4 {[%emt 0:00:27]} Rb8 {[%emt 0:00:32] [#]} 36. Rxc7 $1 {[%emt 0:00:43][%mdl 576] Decoy} Kxc7 {[%emt 0:00:06][%mdl 4096] Endgame KRB-KBN} 37. Na6+ {[%emt 0:00:21]} Kb7 {[%emt 0:00:03]} 38. Nxb8 {[%emt 0:00:01][%cal Od4d5] Strongly threatening d5!} Kxb8 {[%emt 0:00:01] KB-KB} 39. d5 {[%emt 0:00:01]} Kc7 {[%emt 0:00:08]} 40. dxc6 {[%emt 0:00:01]} Kxc6 {[%emt 0:00:02]} 41. b5+ {[%emt 0:00:00]} Kd6 {[%emt 0:00:04]} 42. Bb4+ {[%emt 0:00:02]} Ke6 {[%emt 0:00:02]} 43. e4 {[%emt 0:00:04]} fxe4 {[%emt 0:00:08]} 44. fxe4 {[%emt 0:00:00] White mates.} Bf6 {[%emt 0:00:07]} 45. b6 {[%emt 0:00:01]} Bd8 {[%emt 0:00:02]} 46. Bc5 {[%emt 0:00:01]} g4 {[%emt 0:00:04]} 47. b7 {[%emt 0:00:03]} Kd7 {[%emt 0:00:02]} 48. b8=Q {[%emt 0:00:02] Weighted Error Value: White=0.16 (very precise) /Black=0.50} 1-0

[Event "CCT Airthings Masters Play-In 2023"]
[Site "Online"]
[Date "2023.02.03"]
[Round "1"]
[White "Baku_Boulevard"]
[Black "Mitrabha, Guha"]
[Result "0-1"]
[ECO "B10"]
[WhiteElo "2701"]
[BlackElo "2510"]
[Annotator "TA"]
[PlyCount "84"]
[EventDate "2023.02.03"]
[EventType "swiss"]
[EventCountry "NET"]
[SourceTitle "playchess.com"]
[Source "ChessBase"]
[SourceQuality "1"]
[TimeControl "600+2"]

{[%evp 9,83,18,16,25,31,38,13,22,104,82,140,101,86,92,93,33,27,20,25,22,31,33,31,36,39,38,38,41,42,40,32,27,41,13,70,30,72,0,0,0,17,7,18,0,0,-35,-17,-42,-34,-28,-20,-21,-15,-20,-18,-18,-18,-18,-20,-508,-512,-534,-535,-595,-264,-557,-557,-557,-557,-557,-557,-560,-543,-1206,-1155,-29999]} 1. e4 {[%emt 0:00:03]} c6 {[%emt 0:00:40]} 2. Nf3 {[%emt 0:00:02]} d5 {[%emt 0:00:03]} 3. e5 {[%emt 0:00:01]} Bg4 {[%emt 0:00:04]} 4. Be2 {[%emt 0:00:01]} e6 {[%emt 0:00:01]} 5. O-O {[%emt 0:00:01]} Nd7 {[%emt 0:00:17]} 6. d4 {[%emt 0:00:02] B10: Caro-Kann: 2 d3 and 2 c4.} Ne7 {[%emt 0:00:01]} 7. Nbd2 {[%emt 0:00:01]} c5 {[%emt 0:00:01] The old main line.} 8. c4 {[%emt 0:00:41] [#] The position is equal.} dxc4 $146 {[%emt 0:01:04]} (8... cxd4 $11 9. Nxd4 Bxe2 10. Qxe2 a6) ({Predecessor:} 8... cxd4 9. Nxd4 Bxe2 10. Qxe2 a6 11. Re1 Nc6 12. Nxc6 bxc6 13. Nf3 Bc5 14. Be3 Bxe3 15. Qxe3 {½-½ Fleury,F (2377)-Markus,R (2484) Remote Superturnier 19 email 2013}) 9. Nxc4 $16 {[%emt 0:00:02][%cal Rc4d6] [#]} Nd5 {[%emt 0:00:04]} (9... Nc6 $142) 10. Ng5 {[%emt 0:00:19]} Bxe2 {[%emt 0:00:07]} 11. Qxe2 {[%emt 0:00:01] Qh5 would be deadly.} N7b6 {[%emt 0:01:09] [#]} 12. Nxb6 {[%emt 0:02:08]} ({Much worse is} 12. Qf3 Qd7 13. Nxb6 axb6 $11) (12. dxc5 $1 $16 Bxc5 13. Ne4 (13. Qh5 g6 $11) 13... Nxc4 14. Nxc5 (14. Qxc4 Be7 $11)) 12... axb6 $14 {[%emt 0:00:26]} 13. Qb5+ {[%emt 0:00:01]} Qd7 {[%emt 0:00:01]} 14. Qxd7+ {[%emt 0:00:01]} Kxd7 {[%emt 0:00:00]} 15. Nxf7 {[%emt 0:00:01]} Rg8 {[%emt 0:00:00]} 16. dxc5 {[%emt 0:00:18]} bxc5 {[%emt 0:00:21]} 17. Ng5 {[%emt 0:00:04]} h6 {[%emt 0:00:04]} 18. Ne4 {[%emt 0:00:01]} Be7 {[%emt 0:00:01]} 19. Bd2 {[%emt 0:00:05]} b5 {[%emt 0:00:17]} 20. Rfc1 {[%emt 0:00:09]} Rgc8 {[%emt 0:00:29]} 21. f3 {[%emt 0:00:03]} Ra6 {[%emt 0:00:11]} (21... b4 $11) 22. Kf2 {[%emt 0:00:04]} c4 {[%emt 0:00:01]} 23. Ke2 {[%emt 0:00:05]} (23. a3 $16) 23... b4 $11 {[%emt 0:00:11]} 24. g3 {[%emt 0:00:31]} Rac6 {[%emt 0:00:13]} 25. Be1 {[%emt 0:00:13]} Ra6 {[%emt 0:01:20]} 26. f4 {[%emt 0:00:38]} g5 {[%emt 0:00:33]} 27. Kf3 {[%emt 0:00:34]} Rac6 {[%emt 0:00:31]} 28. Rd1 {[%emt 0:00:18][%cal Oe1b4]} gxf4 {[%emt 0:00:12]} 29. gxf4 {[%emt 0:00:02]} c3 {[%emt 0:00:01]} 30. bxc3 {[%emt 0:00:01]} bxc3 {[%emt 0:00:01] And now ...c2 would win.} 31. Rac1 {[%emt 0:00:01]} c2 {[%emt 0:00:12]} 32. Rd3 {[%emt 0:00:01]} Ke8 {[%emt 0:00:12]} 33. f5 {[%emt 0:03:03]} exf5 {[%emt 0:00:29]} 34. Ng3 {[%emt 0:00:02][%mdl 8192] This costs White the game.} (34. Nd6+ $1 $11 {and White stays safe.} Bxd6 35. exd6) 34... Bg5 $19 {[%emt 0:00:38]} 35. Rxc2 {[%emt 0:00:23]} Rxc2 {[%emt 0:00:02]} 36. Rxd5 {[%emt 0:00:00]} Kf7 {[%emt 0:00:24]} (36... Rxh2 $2 {loses.} 37. Nxf5 Kf7 38. Rd6 $17) (36... R8c4 $142 37. Ra5 Rf4+ 38. Ke3 Rxh2) 37. Rd6 $2 {[%emt 0:00:18]} (37. Rd4 {was called for.}) 37... R8c4 {[%emt 0:00:02]} ({Inferior is} 37... Rxh2 38. Nxf5 Ra8 39. Bb4 $17) 38. e6+ {[%emt 0:00:36]} Ke8 {[%emt 0:00:01]} 39. Nh5 {[%emt 0:00:04]} Ke7 {[%emt 0:00:13]} 40. Rb6 {[%emt 0:00:08]} Re4 {[%emt 0:00:06][%csl Gg5][%cal Re4e3]} 41. Bb4+ {[%emt 0:00:02]} Kd8 {[%emt 0:00:04][%csl Gg5][%cal Re4e3]} 42. a3 {[%emt 0:00:06]} Re3# {[%emt 0:00:01] A cool game by Mitrabha.   Weighted Error Value: White=0.73/Black=0.22 (precise)} 0-1

[Event "CCT Airthings Masters Play-In 2023"]
[Site "Online"]
[Date "2023.02.03"]
[Round "1"]
[White "Bigfish"]
[Black "kuli4ik"]
[Result "0-1"]
[ECO "D17"]
[WhiteElo "2673"]
[BlackElo "2531"]
[Annotator "TA"]
[PlyCount "146"]
[EventDate "2023.02.03"]
[EventType "swiss"]
[EventCountry "NET"]
[SourceTitle "playchess.com"]
[Source "ChessBase"]
[SourceQuality "1"]
[TimeControl "600+2"]

{[%evp 19,146,15,15,0,0,0,43,35,45,37,81,55,92,91,90,86,119,127,96,59,58,49,50,48,74,72,87,70,62,51,54,49,40,12,8,17,16,24,11,8,9,0,5,8,8,0,0,0,0,0,0,0,0,-103,0,0,0,0,0,0,0,0,0,-8,-8,-92,-114,-645,-645,-608,-585,-626,-604,-586,-453,-454,-429,-317,0,-409,-402,-413,-395,-399,-387,-383,-375,-363,-351,-564,-564,-562,-548,-548,-483,-1116,-847,-1095,-1085,-1856,-1795,-29975,-12771,-29965,-12763,-5165,-2437,-29975,-6713,-29986,-29987,-29987,-2086,-1867,-1697,-1462,0,-1233,0,-29987,-29987,-29987,-29988,-29991,-29992,-29992,-29993,-29996,-29997]} 1. d4 {[%emt 0:00:04]} d5 {[%emt 0:00:06]} 2. c4 {[%emt 0:00:01]} c6 {[%emt 0:00:02]} 3. Nf3 {[%emt 0:00:03]} Nf6 {[%emt 0:00:01]} 4. Nc3 {[%emt 0:00:00]} dxc4 {[%emt 0:00:07]} 5. a4 {[%emt 0:00:02]} Bf5 {[%emt 0:00:04]} 6. Ne5 {[%emt 0:00:00]} Nbd7 {[%emt 0:00:02]} 7. Nxc4 {[%emt 0:00:01]} Qc7 {[%emt 0:00:02]} 8. g3 {[%emt 0:00:01]} e5 {[%emt 0:00:02]} 9. dxe5 {[%emt 0:00:01]} Nxe5 {[%emt 0:00:00]} 10. Bf4 {[%emt 0:00:02]} Nfd7 {[%emt 0:00:02]} 11. Qc1 {[%emt 0:00:12] D17: Slav Defence: 5 a4 Bf5: Lines with 6 Nh4 and 6 Ne5.} f6 {[%emt 0:01:01]} 12. Bg2 {[%emt 0:00:27]} g5 {[%emt 0:00:59]} (12... Be6 $5 {[%cal Re6c4]} 13. Nxe5 Nxe5 $11) 13. Nxe5 $1 {[%emt 0:00:20] White is slightly better.} Nxe5 {[%emt 0:00:02]} 14. Be3 {[%emt 0:01:32] [#]} Bd6 $146 {[%emt 0:01:38]} ({Predecessor:} 14... Nc4 15. O-O Qe5 16. Ne4 Nxe3 17. Qxe3 O-O-O 18. Nxg5 Qxe3 19. fxe3 Bg6 20. Ne6 Rd2 21. Nxf8 Rxf8 {½-½ Petrov,N (2552)-Afanasiev,N (2542) Anapa Sea Harbor Cup 2021 (5)}) 15. h4 {[%emt 0:01:49]} g4 {[%emt 0:00:27]} 16. O-O {[%emt 0:00:20]} O-O {[%emt 0:00:05]} 17. a5 {[%emt 0:00:29]} a6 {[%emt 0:00:41]} 18. Rd1 {[%emt 0:00:09]} Qe7 {[%emt 0:00:13]} 19. Na4 {[%emt 0:01:05]} Rad8 {[%emt 0:00:17]} 20. Qc3 {[%emt 0:00:35]} Bb4 {[%emt 0:00:24]} 21. Bc5 $1 {[%emt 0:00:02]} Bxc5 {[%emt 0:00:18]} 22. Nxc5 {[%emt 0:00:03]} Bc8 {[%emt 0:00:01]} 23. Re1 {[%emt 0:00:34]} (23. Be4 {keeps more tension.} Kg7 24. Bc2 Be6 25. Qe3) 23... Kg7 {[%emt 0:00:47]} 24. f4 {[%emt 0:00:51]} gxf3 {[%emt 0:01:08]} 25. exf3 {[%emt 0:00:01]} Qd6 {[%emt 0:00:03]} 26. Re4 {[%emt 0:00:18]} Qd2 {[%emt 0:00:14]} 27. f4 {[%emt 0:00:56]} (27. Qxd2 {simplifies} Rxd2 28. f4 Ng4 29. b4) 27... Ng4 {[%emt 0:00:21] Really sharp!} 28. Qxd2 {[%emt 0:00:26]} Rxd2 {[%emt 0:00:02]} 29. b4 {[%emt 0:00:02]} h5 {[%emt 0:01:07]} 30. Bf3 {[%emt 0:00:05]} Rf7 {[%emt 0:00:11]} 31. Rae1 {[%emt 0:00:10]} Rb2 {[%emt 0:00:03]} 32. R1e2 {[%emt 0:00:07]} Rb1+ {[%emt 0:00:07]} 33. Kg2 {[%emt 0:00:01]} Bf5 {[%emt 0:00:01]} 34. Rd4 {[%emt 0:00:00]} Kg6 {[%emt 0:00:16]} 35. Ne4 {[%emt 0:00:03] Threatens to win with Nd6.} Re7 {[%emt 0:00:03]} 36. Nd6 {[%emt 0:00:01] [#]} (36. Red2 $11) 36... Rxe2+ {[%emt 0:00:03]} (36... Ne3+ $1 $17 37. Rxe3 (37. Kh2 $2 Bg4 $19) 37... Rxe3 38. Bxh5+ Kxh5 39. Nxf5 Ree1) 37. Bxe2 $11 {[%emt 0:00:00]} Rb2 {[%emt 0:00:00]} 38. Kf1 {[%emt 0:00:06]} Ne3+ {[%emt 0:00:03]} 39. Kf2 {[%emt 0:00:02]} Nd5 {[%emt 0:00:07]} 40. Nxf5 {[%emt 0:00:15]} Kxf5 {[%emt 0:00:00][%mdl 4096] Endgame KRB-KRN} 41. Kf3 {[%emt 0:00:03]} Kg6 {[%emt 0:00:08]} ({But not} 41... Rxb4 42. Rxb4 Nxb4 43. Ke3 Nd5+ 44. Kd4 $14) 42. Bd3+ {[%emt 0:00:02]} (42. Bc4 $1 $11 {remains equal.}) 42... f5 $17 {[%emt 0:00:01] Black is more active.} 43. Bc4 $2 {[%emt 0:00:03][%mdl 8192]} (43. Be2 $17) 43... Rxb4 $19 {[%emt 0:00:00]} (43... Nxb4 $2 44. Rd6+ Kh7 45. Rd7+ Kg6 46. Rxb7 $18) 44. Ke2 {[%emt 0:00:01]} Ra4 {[%emt 0:00:01]} 45. Kd3 {[%emt 0:00:01]} Rxa5 {[%emt 0:00:02]} 46. Bb3 {[%emt 0:00:00]} Rb5 {[%emt 0:00:03]} ({Wrong is} 46... Ra3 $2 47. Kc2 $19) 47. Kc2 {[%emt 0:00:01]} Rb4 {[%emt 0:00:03]} 48. Rd3 {[%emt 0:00:02]} Rb5 {[%emt 0:00:00]} ({Black should play} 48... a5 $19 {White must now prevent ...Rb5.} 49. Bxd5 cxd5 50. Rxd5 a4 51. Rd6+ Kf7) 49. Rd2 $2 {[%emt 0:00:03][%mdl 8192]} (49. Rd4 $1 $11 {and White stays safe.} a5 50. Rd2) 49... Rc5+ {[%emt 0:00:01]} 50. Kb2 {[%emt 0:00:01]} a5 {[%emt 0:00:01][%cal Ba6a5,Ba5a4][%mdl 32]} 51. Re2 {[%emt 0:00:01]} Kf6 {[%emt 0:00:03] And now ...b5 would win.} 52. Re5 {[%emt 0:00:03]} b5 {[%emt 0:00:01][%cal Bb7b5,Bb5b4][%mdl 32] Hoping for ...a4.} 53. Bc2 {[%emt 0:00:01]} Kg7 {[%emt 0:00:09] aiming for ...a4.} 54. Bxf5 $2 {[%emt 0:00:01]} (54. Bd1 {only move.} Nb4 55. Re3) 54... a4 {[%emt 0:00:02]} 55. Be4 {[%emt 0:00:05] [#]} b4 $1 {[%emt 0:00:01]} 56. Rg5+ {[%emt 0:00:04]} Kf6 {[%emt 0:00:02] Strongly threatening ...a3+.} 57. Rf5+ {[%emt 0:00:04]} (57. Rg6+ $142 Ke7 58. Bxd5 cxd5 59. Ra6 a3+ 60. Kb3) 57... Ke6 {[%emt 0:00:01]} 58. Re5+ {[%emt 0:00:01]} Kd6 {[%emt 0:00:01]} 59. Bxd5 {[%emt 0:00:01]} Rxd5 {[%emt 0:00:02] KR-KR} 60. Re4 {[%emt 0:00:02]} c5 {[%emt 0:00:02]} 61. Kc2 {[%emt 0:00:01]} a3 {[%emt 0:00:02]} 62. Re8 {[%emt 0:00:05]} Rd4 {[%emt 0:00:03]} (62... c4 $142 63. Rd8+ Kc5 64. Rc8+ Kd4 65. Kd2 a2 66. Ra8 b3 67. Ke2 b2 68. Rxa2 b1=Q 69. Rd2+ Ke4 70. Rxd5 Kxd5 71. Kf2 Ke4 72. g4 Kxf4 73. g5 Qb2+ 74. Ke1 Ke3 75. g6 Qe2#) 63. Rh8 {[%emt 0:00:04]} Rc4+ {[%emt 0:00:03]} 64. Kb3 {[%emt 0:00:02]} Rc3+ {[%emt 0:00:01]} 65. Ka2 {[%emt 0:00:00]} Rc2+ {[%emt 0:00:02]} (65... Kd5 $142 66. Rxh5+ Kd4 67. Re5 Rc2+ 68. Kb1 b3 69. Re1 a2+ 70. Ka1 Kc3 71. g4 Kb4 72. Re4+ Ka3 73. Ra4+ Kxa4 74. h5 Rc1+ 75. Kb2 a1=Q#) 66. Kb3 {[%emt 0:00:01]} Rb2+ {[%emt 0:00:01]} 67. Kc4 {[%emt 0:00:01]} Rc2+ {[%emt 0:00:02]} 68. Kb3 {[%emt 0:00:01]} Rc3+ {[%emt 0:00:01]} (68... Rg2 $19 69. Rxh5 Rxg3+ 70. Ka2 c4 71. Rh6+ Kc5 72. Rh5+ Kd4 73. Rg5 Rxg5 74. fxg5 Kc3 75. Kb1 b3 76. Kc1 b2+ 77. Kd1 b1=Q+ 78. Ke2 a2 79. Kf2 a1=Q 80. Kg2 Qe4+ 81. Kh3 Qah1+ 82. Kg3 Qhxh4#) 69. Ka2 {[%emt 0:00:01]} Rxg3 {[%emt 0:00:00] Black mates.} 70. Rxh5 {[%emt 0:00:02]} c4 {[%emt 0:00:01]} 71. Rb5 {[%emt 0:00:01]} Rg2+ {[%emt 0:00:01]} 72. Kb1 {[%emt 0:00:01]} b3 {[%emt 0:00:00][%cal Rg2g1]} 73. Kc1 {[%emt 0:00:02]} a2 {[%emt 0:00:02] Weighted Error Value: White=0.71/Black=0.22 (precise)} 0-1

[Event "CCT Airthings Masters Play-In 2023"]
[Site "Online"]
[Date "2023.02.03"]
[Round "1"]
[White "Wizard456"]
[Black "MrTattaglia"]
[Result "1-0"]
[ECO "E12"]
[WhiteElo "2666"]
[BlackElo "2528"]
[Annotator "NA"]
[PlyCount "76"]
[EventDate "2023.02.03"]
[EventType "swiss"]
[EventCountry "NET"]
[SourceTitle "playchess.com"]
[Source "ChessBase"]
[SourceQuality "1"]
[TimeControl "600+2"]

1. d4 {[%emt 0:00:03]} Nf6 {[%emt 0:00:06]} 2. c4 {[%emt 0:00:01]} e6 {[%emt 0:00:02]} 3. Nf3 {[%emt 0:00:02]} b6 {[%emt 0:00:02]} 4. a3 {[%emt 0:00:01]} Bb7 {[%emt 0:00:03]} 5. Nc3 {[%emt 0:00:01]} Ne4 {[%emt 0:00:01]} 6. Nxe4 {[%emt 0:00:02]} Bxe4 {[%emt 0:00:01]} 7. Nd2 {[%emt 0:00:00]} Bg6 {[%emt 0:00:03]} 8. g3 {[%emt 0:00:02]} Nc6 {[%emt 0:00:59]} 9. e3 {[%emt 0:00:06]} h5 {[%emt 0:00:04]} 10. h4 {[%emt 0:00:09]} Bd6 {[%emt 0:01:29]} 11. Bg2 {[%emt 0:00:10]} e5 {[%emt 0:00:01]} 12. Ne4 {[%emt 0:00:43]} O-O {[%emt 0:00:25]} 13. O-O {[%emt 0:00:07]} Be7 {[%emt 0:00:38]} 14. b3 {[%emt 0:00:50]} Rb8 {[%emt 0:02:09]} 15. Bb2 {[%emt 0:00:07]} f5 {[%emt 0:00:10]} 16. Nc3 {[%emt 0:00:11]} exd4 {[%emt 0:00:02]} 17. exd4 {[%emt 0:00:04]} f4 {[%emt 0:00:01]} 18. Ne4 {[%emt 0:01:35]} Bd6 {[%emt 0:01:45]} 19. Nxd6 {[%emt 0:00:49]} cxd6 {[%emt 0:00:00]} 20. Qd2 {[%emt 0:00:22]} Qf6 {[%emt 0:00:09]} 21. Rae1 {[%emt 0:00:34]} f3 {[%emt 0:00:50]} 22. Bh1 {[%emt 0:00:26]} Rbe8 {[%emt 0:00:14]} 23. Re3 {[%emt 0:00:05]} Rxe3 {[%emt 0:00:24]} 24. Qxe3 {[%emt 0:00:01]} d5 {[%emt 0:00:28]} 25. cxd5 {[%emt 0:00:42]} Ne7 {[%emt 0:00:02]} 26. d6 {[%emt 0:00:05]} Nd5 {[%emt 0:00:25]} 27. Qe5 {[%emt 0:00:03]} Qxe5 {[%emt 0:00:02]} 28. dxe5 {[%emt 0:00:00]} Bc2 {[%emt 0:00:02]} 29. b4 {[%emt 0:00:10]} b5 {[%emt 0:00:09]} 30. Rc1 {[%emt 0:00:02]} Be4 {[%emt 0:00:01]} 31. Bd4 {[%emt 0:00:04]} a6 {[%emt 0:00:08]} 32. Re1 {[%emt 0:00:18]} Bc2 {[%emt 0:00:03]} 33. e6 {[%emt 0:00:03]} dxe6 {[%emt 0:00:04]} 34. Rxe6 {[%emt 0:00:00]} Bb3 {[%emt 0:00:06]} 35. d7 {[%emt 0:00:08]} Kf7 {[%emt 0:00:02]} 36. Rd6 {[%emt 0:00:31]} Rd8 {[%emt 0:00:01]} 37. Bxf3 {[%emt 0:00:01]} Ke7 {[%emt 0:00:03]} 38. Bc5 {[%emt 0:00:03]} Nf6 {[%emt 0:00:02]} 1-0

[Event "CCT Airthings Masters Play-In 2023"]
[Site "Online"]
[Date "2023.02.03"]
[Round "1"]
[White "Grandelius, Nils"]
[Black "Dedic8"]
[Result "*"]
[ECO "C64"]
[WhiteElo "2660"]
[BlackElo "2447"]
[Annotator "TA"]
[PlyCount "41"]
[EventDate "2023.02.03"]
[EventType "swiss"]
[EventCountry "NET"]
[SourceTitle "playchess.com"]
[Source "ChessBase"]
[SourceQuality "1"]
[TimeControl "600+2"]

{[%evp 10,41,38,29,31,29,27,33,32,29,36,32,30,34,28,25,37,24,18,20,22,24,14,0,12,22,9,6,14,14,16,-29,0,-18]} 1. e4 {[%emt 0:00:09]} e5 {[%emt 0:00:11]} 2. Nf3 {[%emt 0:00:01]} Nc6 {[%emt 0:00:01]} 3. Bb5 {[%emt 0:00:01]} a6 {[%emt 0:00:01]} 4. Ba4 {[%emt 0:00:01]} Bc5 {[%emt 0:00:01]} 5. c3 {[%emt 0:00:05]} Nge7 {[%emt 0:00:07]} 6. O-O {[%emt 0:00:03]} Ba7 {[%emt 0:00:02] C64: Ruy Lopez: Classical Defence (3...Bc5) except 4 0-0 Nf6.} 7. d4 {[%emt 0:00:01]} Ng6 {[%emt 0:00:01]} 8. Bg5 {[%emt 0:00:06]} f6 {[%emt 0:00:01] White is slightly better.} 9. Be3 {[%emt 0:00:00]} O-O {[%emt 0:00:01]} 10. Nbd2 {[%emt 0:00:04] 10.Nbd2 is better than 10.d5.} d6 {[%emt 0:00:04]} 11. Re1 {[%emt 0:00:13]} Kh8 {[%emt 0:00:05]} 12. h3 {[%emt 0:00:19]} Bd7 {[%emt 0:00:14]} 13. Bc2 {[%emt 0:00:09] [#]} f5 $146 {[%emt 0:00:14]} ({Predecessor:} 13... a5 14. Nf1 exd4 15. cxd4 d5 16. exd5 Nb4 17. Bb3 Bb5 18. Ng3 Nxd5 19. Rc1 Ndf4 {1-0 Oparin,G (2685)-Bjelobrk,I (2395) Titled Tuesday intern op 21st Jun Late blitz 2022 (2)}) 14. exf5 {[%emt 0:00:48]} Bxf5 {[%emt 0:00:02]} 15. Bxf5 {[%emt 0:00:01]} Rxf5 {[%emt 0:00:00]} 16. Ne4 {[%emt 0:00:01]} h6 {[%emt 0:00:22]} 17. Ng3 {[%emt 0:00:53]} Rf8 {[%emt 0:00:03]} 18. dxe5 {[%emt 0:00:21] [#] Threatens to win with Bxa7.} Bxe3 {[%emt 0:00:15]} 19. Rxe3 {[%emt 0:00:08] next exd6 is good for White.} Ncxe5 {[%emt 0:00:01]} 20. Nd4 {[%emt 0:00:04]} Qd7 {[%emt 0:00:19] Repels Ne6} (20... Qf6 $5 {[%cal Rf6f2]} 21. Qc2 Nf4 $11) 21. Qc2 {[%emt 0:01:45] Weighted Error Value: White=0.05 (flawless) /Black=0.05 (flawless)} *